Workbook

Sheet PFP
A1: PROPOSTA FINANCEIRA DO PROJETO | J1: CODIGO:
J2: PFP
A3: NOME DA CONSULTORA:
A5: PROJETO: | F5: CONTRATANTE: | J5: BASE: Ago/2020
A6: Estudos, Projetos Básico e Executivo - Orla Macapá - AP | F6: Codevasf (Sede) | J6: SICRO: ago/20 CODE: Ago/20
A7: Base | B7: Cod1 | C7: Cod2 | D7: Categoria / Insumo | E7: Uni | F7: Qde | G7: CUD | H7: PU | I7: FatorK | J7: CT | K7: PT
A8: SICRO | B8: MO | C8: P0 | D8: Engenheiro Sênior (Coordenador) | E8: mês | F8: ='CRO1_Ins-Pro'!D4 -> 0 | G8: 18313.67 | H8: =ROUND(I8*G8,2) -> 31047.16 | I8: =PFP2.2_FatorKb!$E$37 -> 1.6953 | J8: =ROUND(F8*G8,2) -> 0 | K8: =ROUND(F8*H8,2) -> 0
A9: SICRO | B9: MO | C9: P1 | D9: Engenheiro Sênior | E9: mês | F9: ='CRO1_Ins-Pro'!D5 -> 0 | G9: 14430.48 | H9: =ROUND(I9*G9,2) -> 24463.99 | I9: =PFP2.2_FatorKb!$E$37 -> 1.6953 | J9: =ROUND(F9*G9,2) -> 0 | K9: =ROUND(F9*H9,2) -> 0
A10: SICRO | B10: MO | C10: P2 | D10: Engenheiro Pleno | E10: mês | F10: ='CRO1_Ins-Pro'!D6 -> 0 | G10: 11289.32 | H10: 26587.48 | I10: =PFP2.1_FatorKa!$E$37 -> 2.3551 | J10: 0 | K10: 0
A11: SICRO | B11: MO | C11: P3 | D11: Engenheiro Júnior | E11: mês | F11: ='CRO1_Ins-Pro'!D7 -> 0 | G11: 9287.81 | H11: 21873.72 | I11: =PFP2.1_FatorKa!$E$37 -> 2.3551 | J11: 0 | K11: 0
A12: SICRO | B12: MO | C12: S1 | D12: Analista Sênior | E12: mês | F12: ='CRO1_Ins-Pro'!D8 -> 0 | G12: 5963.68 | H12: 14045.06 | I12: =PFP2.1_FatorKa!$E$37 -> 2.3551 | J12: 0 | K12: 0
A13: SICRO | B13: MO | C13: S2 | D13: Analista Pleno | E13: mês | F13: ='CRO1_Ins-Pro'!D9 -> 0 | G13: 4782.69 | H13: 11263.71 | I13: =PFP2.1_FatorKa!$E$37 -> 2.3551 | J13: 0 | K13: 0
A14: SICRO | B14: MO | C14: S3 | D14: Analista Júnior | E14: mês | F14: ='CRO1_Ins-Pro'!D10 -> 0 | G14: 3601.69 | H14: 8482.34 | I14: =PFP2.1_FatorKa!$E$37 -> 2.3551 | J14: 0 | K14: 0
A15: SICRO | B15: MO | C15: T1 | D15: Técnico Sênior | E15: mês | F15: ='CRO1_Ins-Pro'!D11 -> 0 | G15: 4989.91 | H15: 11751.74 | I15: =PFP2.1_FatorKa!$E$37 -> 2.3551 | J15: 0 | K15: 0
A16: SICRO | B16: MO | C16: T2 | D16: Técnico Pleno | E16: mês | F16: ='CRO1_Ins-Pro'!D12 -> 0 | G16: 3773.62 | H16: 8887.25 | I16: =PFP2.1_FatorKa!$E$37 -> 2.3551 | J16: 0 | K16: 0
A17: SICRO | B17: MO | C17: T3 | D17: Técnico Junior | E17: mês | F17: ='CRO1_Ins-Pro'!D13 -> 0 | G17: 3028.85 | H17: 7133.24 | I17: =PFP2.1_FatorKa!$E$37 -> 2.3551 | J17: 0 | K17: 0
A18: SICRO | B18: MO | C18: A1 | D18: Administrativo (Secretariado) | E18: mês | F18: ='CRO1_Ins-Pro'!D14 -> 0 | G18: 3147.75 | H18: 7413.27 | I18: =PFP2.1_FatorKa!$E$37 -> 2.3551 | J18: 0 | K18: 0
A19: SICRO | B19: MO | C19: A2 | D19: Auxiliar | E19: mês | F19: ='CRO1_Ins-Pro'!D15 -> 0 | G19: 1083.5 | H19: =ROUND(I19*G19,2) -> 2551.75 | I19: =PFP2.1_FatorKa!$E$37 -> 2.3551 | J19: =ROUND(F19*G19,2) -> 0 | K19: =ROUND(F19*H19,2) -> 0
A20: CODE | B20: DP | C20: V1 | D20: Diárias | E20: dia | F20: ='CRO1_Ins-Pro'!D16 -> 0 | G20: 239 | H20: 300.14 | I20: =PFP3_FatorKc!$E$19 -> 1.2558 | J20: 0 | K20: 0
A21: SICRO | B21: DP | C21: V2 | D21: Aluguel Sedan 71 a 115 CV | E21: dia | F21: ='CRO1_Ins-Pro'!D17 -> 0 | G21: =3348.94/30 -> 111.6313333 | H21: 140.19 | I21: =PFP3_FatorKc!$E$19 -> 1.2558 | J21: 0 | K21: 0
A22: SICRO | B22: DP | C22: V3 | D22: Caminhonete 140 a 165 CV | E22: dia | F22: ='CRO1_Ins-Pro'!D18 -> 0 | G22: =5006.66/30 -> 166.8886667 | H22: 209.58 | I22: =PFP3_FatorKc!$E$19 -> 1.2558 | J22: 0 | K22: 0
A23: CODE | B23: DP | C23: V4 | D23: Passagens Aéreas (ida e volta) | E23: un | F23: ='CRO1_Ins-Pro'!D19 -> 0 | G23: =AVERAGE(1032,480,885,896,1454) -> 949.4 | H23: 1192.26 | I23: =PFP3_FatorKc!$E$19 -> 1.2558 | J23: 0 | K23: 0
A24: PROP | B24: EM | C24: M1 | D24: Pen Drive 16 Gb | E24: un | F24: ='CRO1_Ins-Pro'!D20 -> 0 | G24: =AVERAGE(29.99,45.9,45.27) -> 40.38666667 | H24: 50.72 | I24: =PFP3_FatorKc!$E$19 -> 1.2558 | J24: 0 | K24: =ROUND(F24*H24,2) -> 0
A25: PROP | B25: EM | C25: M2 | D25: HD Externo 2 Tb | E25: un | F25: ='CRO1_Ins-Pro'!D21 -> 0 | G25: =AVERAGE(494.16,549,586.09) -> 543.0833333 | H25: 682 | I25: =PFP3_FatorKc!$E$19 -> 1.2558 | J25: 0 | K25: =ROUND(F25*H25,2) -> 0
A26: CODE | B26: EM | C26: M3 | D26: Relatório Parcial | E26: un | F26: ='CRO1_Ins-Pro'!D22 -> 0 | G26: 33.35 | H26: 41.88 | I26: =PFP3_FatorKc!$E$19 -> 1.2558 | J26: 0 | K26: 0
A27: CODE | B27: EM | C27: M4 | D27: Relatório Final | E27: un | F27: ='CRO1_Ins-Pro'!D23 -> 0 | G27: 1478.8 | H27: 1857.08 | I27: =PFP3_FatorKc!$E$19 -> 1.2558 | J27: 0 | K27: =ROUND(F27*H27,2) -> 0
A28: CODE | B28: SG | C28: TP | D28: Total Serviços Cartográficos | E28: un | F28: ='CRO1_Ins-Pro'!D24 -> 0 | G28: - | H28: =PFP1.1_Topo!G22 -> 318723.87 | I28: - | J28: - | K28: =ROUND(F28*H28,2) -> 0
A29: CODE | B29: SG | C29: GT | D29: Total Serviços Geotécnicos | E29: un | F29: ='CRO1_Ins-Pro'!D25 -> 0 | G29: - | H29: =PFP1.2_Geo!G44 -> 125619.18 | I29: - | J29: - | K29: 0
A30: TOTAL DOS CUSTOS DIRETOS | H30: =SUM(J8:J29) -> 0
A31: TOTAL DOS ENCARGOS E DISPESAS DIVERSAS | H31: =H32-H30 -> 0
A32: TOTAL DA PROPOSTA A PREÇO GLOBAL | H32: =SUM(K8:K27) -> 0
A33: TOTAL DA PROPOSTA A PREÇO UNITÁRIO | H33: =SUM(K28:K29) -> 0
A34: TOTAL DA PROPOSTA | H34: =H32+H33 -> 0
A35: NOME DO INFORMANTE: | J35: QUALIFICAÇÃO
A37: ASSINATURA: | J37: DATA:
A39: OBSERVAÇÃO:
A40: Alocar os Insumos MO, com respectivo FatorK, dentro da categoria de vínculo contratual (com ou sem) de cada tipo de profissional
A41: Uni - unidade de medição do insumo;
A42: Qde - Quantidade do Insumo (não pode ocorrer alteração pela Licitante)
A43: CUD - Custo Unitário Direto do Insumo (sem encargos, taxas e impostos, valor não pode ser maior que o Orçado pela Codevasf)
A44: CT - Custo Total (sem encargos, taxas e impostos) - CT = Qde x CUD
A45: FatorK - Taxa de Ressarcimento de Despesas e Encargos (detalhar composição nas Planilhas "PFP2.1", "PFP2.2", "PFP3")
A46: PU - Preço Unitário do Insumo (incluído encargos, taxas e impostos) - PU = CUD x FatorK
A47: PT - Preço Total do Insumo (incluído encargos, taxas e impostos) - PT = Qde x PU
A48: P - Profissionais nível superior nas áreas de Engenharia, Química, Arquitetura, Agronomia e Veterinária, conforme disposições da Lei 4.950-A/66
A49: S - Profissionais de nível superior nas demais áreas de atuação, incluindo Arqueólogo, Biólogo, Geógrafo e Socioólogo
A50: T - Profissionais de nível médio técnico nas diversas áreas de atuação
A51: A - Profissionais de nível médio de apoio técnico-administrativo

Sheet PFP1.1_Topo
A1: SERVIÇOS TOPOGRÁFICOS/CARTOGRÁFICOS | G1: CODIGO:
G2: PFP-1.1
A3: NOME DA EMPRESA:
A5: PROJETO: | E5: CONTRATANTE: | G5: =PFP!J5 -> BASE: Ago/2020
A6: =PFP!A6 -> Estudos, Projetos Básico e Executivo - Orla Macapá - AP | E6: =PFP!F6 -> Codevasf (Sede) | G6: CODE: Jan/20
A7: Cod. | B7: Base | C7: Insumos | D7: Uni | E7: Qde | F7: Preço Unitário (PU) | G7: Preço Total (PT)
A8: TP01 | B8: CODE | C8: Pontos GPS de dupla frequencia (L1/L2) | D8: un | E8: 4 | F8: 900.98 | G8: =ROUND(F8*E8,2) -> 3603.92
A9: TP02 | B9: CODE | C9: Pontos GPS de uma frequencia (L1) | D9: un | E9: 8 | F9: 446.35 | G9: 3570.8
A10: TP03 | B10: CODE | C10: Poligonal eletrônica classe IIP | D10: km | E10: 15 | F10: 1637.53 | G10: 24562.95
A11: TP04 | B11: CODE | C11: Nivelamento Geométrico classe IIN | D11: km | E11: 15 | F11: 725.69 | G11: 10885.35
A12: TP05 | B12: CODE | C12: Seções Transversais (Nivelamento IIN) | D12: km | E12: 30 | F12: 725.69 | G12: 21770.7
A13: TP06 | B13: CODE | C13: Cadastro Físico | D13: ha | E13: 5.92 | F13: 34.89 | G13: 206.55
A14: TP07 | B14: CODE | C14: Cadastro Jurídico | D14: ha | E14: 5.92 | F14: 34.89 | G14: 206.55
A15: TP08 | B15: CODE | C15: Cadastro Socioeconomico | D15: ha | E15: 5.92 | F15: 34.89 | G15: 206.55
A16: TP09 | B16: CODE | C16: Levantamento Planialtimetrico com RPA (VANT) | D16: ha | E16: 10 | F16: 1170.1 | G16: 11701
A17: TP10 | B17: CODE | C17: Levantamentos Topobatimétricos | D17: km | E17: 280 | F17: 802.9 | G17: 224812
A18: TP11 | B18: CODE | C18: Levantamentos Ecobatimétricos | D18: ha | E18: 50 | F18: 47.49 | G18: 2374.5
A19: TP12 | B19: CODE | C19: Marco de Concreto (12x18x60cm) | D19: un | E19: 300 | F19: 24.67 | G19: 7401
A20: TP13 | B20: CODE | C20: Barrotes de Madeira (10x10x50cm) | D20: un | E20: 300 | F20: 19.92 | G20: 5976
A21: TP14 | B21: CODE | C21: Piquetes de Madeira (2x2x20cm) | D21: un | E21: 600 | F21: 2.41 | G21: 1446
A22: TOTAL SERVIÇOS TOPOGRÁFICOS | G22: =SUM(G8:G21) -> 318723.87
A23: NOME DO INFORMANTE: | F23: QUALIFICAÇÃO:
A25: ASSINATURA: | F25: DATA:
A27: OBSERVAÇÃO:
A28: Uni - unidade de medição do insumo;
A29: Qde - Quantidade do Insumo (não pode ocorrer alteração pela Licitante)
A30: PU - Preço Unitário (composições padrão da Codevasf, já incluso o FatorK)
A31: PT - Preço Total (incluído encargos, taxas e impostos) - PT = Qde x PU

Sheet PFP1.2_Geo
A1: SERVIÇOS GEOLÓGICOS/GEOTÉCNICOS | G1: CODIGO:
G2: PFP-1.2
A3: NOME DA EMPRESA:
A5: PROJETO: | E5: CONTRATANTE: | G5: =PFP!J5 -> BASE: Ago/2020
A6: =PFP!A6 -> Estudos, Projetos Básico e Executivo - Orla Macapá - AP | E6: =PFP!F6 -> Codevasf (Sede) | G6: CODE: Jan/20
A7: Cod. | B7: Base | C7: Insumos | D7: Uni | E7: Qde | F7: Preço Unitário (PU) | G7: Preço Total (PT)
A8: 1 | C8: SONDAGEM MISTA
A9: 1.1 | B9: CODE | C9: Sondagem Rotativa Subaquática
A10: 1.1.1 | B10: CODE | C10: Mobilização e desmobilização de equipamentos | D10: equip | E10: 1 | F10: 3476.27 | G10: =ROUND(F10*E10,2) -> 3476.27
A11: 1.1.2 | B11: CODE | C11: Em grandes rochas e afins | G11: 0
A12: 1.1.3 | B12: CODE | C12: ø N | D12: m | E12: 80 | F12: 642.91 | G12: 51432.8
A13: 1.1.4 | B13: CODE | C13: ø B | D13: m | E13: 80 | F13: 270.33 | G13: 21626.4
A14: 1.1.5 | B14: CODE | C14: ø N (sondagem em solo) | D14: m | E14: 80 | F14: 251.94 | G14: 20155.2
A15: 1.2 | B15: CODE | C15: Sondagem a Percussão Subaquática | G15: 0
A16: 1.2.1 | B16: CODE | C16: Mobilização e desmobilização de equipamentos | D16: equip | E16: 1 | F16: 915.66 | G16: 915.66
A17: 1.2.2 | B17: CODE | C17: Sondagem a percussão com SPT | D17: m | E17: 80 | F17: 80.3 | G17: 6424
A18: 1.2.3 | B18: CODE | C18: Deslocamento/instalação de equipam. | G18: 0
C19: 0 a 200 metros | D19: un | E19: 8 | F19: 484.259299 | G19: 3874.07
A20: 1.3 | B20: CODE | C20: Sondagem a Percussão Terrestre | D20: m | E20: 50 | F20: 80.3 | G20: 4015
A21: 2 | B21: CODE | C21: SONDAGEM A TRADO | D21: m | E21: 80 | F21: 66.07 | G21: 5285.6
A22: 3 | B22: CODE | C22: POÇOS DE INSPEÇÃO (com retroescavadeira) | D22: m | G22: 0
A23: 4 | B23: CODE | C23: ENSAIOS | G23: 0
A24: 4.1 | B24: CODE | C24: Ensaios em Solos | G24: 0
A25: 4.1.1 | B25: CODE | C25: Umidade Natural | D25: un | E25: 10 | F25: 76.89 | G25: 768.9
A26: 4.1.2 | B26: CODE | C26: Densidade Natural | D26: un | E26: 10 | F26: 76.89 | G26: 768.9
A27: 4.1.3 | B27: CODE | C27: Limite de Liquidez | D27: un | E27: 10 | F27: 105.99 | G27: 1059.9
A28: 4.1.4 | B28: CODE | C28: Limite de Plasticidade | D28: un | E28: 10 | F28: 105.99 | G28: 1059.9
A29: 4.1.5 | B29: CODE | C29: Granulometria por Peneiramento | D29: un | E29: 10 | F29: 117.06 | G29: 1170.6
A30: 4.1.6 | B30: CODE | C30: Ensaio de compactação Proctor Normal | D30: un | E30: 10 | F30: 150.84 | G30: 1508.4
A31: 4.1.7 | B31: CODE | C31: Massa Específica Real dos Grãos | D31: un | E31: 5 | F31: 95.38001748 | G31: 476.9
A32: 4.1.8 | B32: CODE | C32: Índice de Suporte Califórnia (ISC/CBR) | D32: un | G32: 0
A33: 4.2 | B33: CODE | C33: Ensaio de Agregados | G33: 0
A34: 4.2.1 | B34: CODE | C34: Abrasão "Los angeles" | D34: un | G34: 0
A35: 4.2.2 | B35: CODE | C35: Adesividade | D35: un | G35: 0
A36: 4.2.3 | B36: CODE | C36: Granulometria Comparativa | D36: un | E36: 5 | F36: 230.67 | G36: 1153.35
A37: 4.2.4 | B37: CODE | C37: Crumb Test | D37: un | E37: 5 | F37: 89.46660232 | G37: 447.33
A38: 4.2.5 | B38: CODE | C38: Sanidade (Durabilidade) | D38: un | G38: 0
A39: 4.2.6 | B39: CODE | C39: Lâmina Petrográfica | D39: un | G39: 0
A40: 4.2.7 | B40: CODE | C40: Índice de Forma | D40: un | G40: 0
A41: 4.2.8 | B41: CODE | C41: Teor de Matéria Orgânica | D41: un | G41: 0
A42: 4.2.9 | B42: CODE | C42: Equivalente de Areia | D42: un | G42: 0
A43: 4.2.10 | B43: CODE | C43: Reatividade Potencial | D43: un | G43: 0
A44: TOTAL SERVIÇOS GEOTÉCNICOS | G44: =SUM(G9:G43) -> 125619.18
A45: NOME DO INFORMANTE: | F45: QUALIFICAÇÃO:
A47: ASSINATURA: | F47: DATA:
A49: LEGENDA:
A50: Uni - unidade de medição do insumo;
A51: Qde - Quantidade do Insumo (não pode ocorrer alteração pela Licitante)
A52: PU - Preço Unitário (composições padrão da Codevasf, já incluso o FatorK)
A53: PT - Preço Total (incluído encargos, taxas e impostos) - PT = Qde x PU

Sheet PFP2.1_FatorKa
A1: DETALHAMENTO DOS ENCARGOS SOCIAIS: Ka | F1: CODIGO:
F2: PFP-2.1
A3: NOME DA CONSULTORA:
A5: PROJETO: | C5: CONTRATANTE: | F5: =PFP!J5 -> BASE: Ago/2020
A6: =PFP1.2_Geo!A6 -> Estudos, Projetos Básico e Executivo - Orla Macapá - AP | C6: =PFP1.2_Geo!E6 -> Codevasf (Sede) | F6: =PFP!J6 -> SICRO: ago/20 CODE: Ago/20
A7: DISCRIMINAÇÃO | E7: VALORES
E8: % | F8: R$
A9: A | B9: ENCARGOS SOCIAIS BÁSICOS | E9: =ROUND(SUM(E10:E18),4) -> 0.378 | F9: =ROUND(E9*PFP!H30,2) -> 0
A10: A1 | B10: Seconci | E10: 0.01 | F10: =ROUND(E10*PFP!$H$30,2) -> 0
A11: A2 | B11: INSS | E11: 0.2 | F11: =ROUND(E11*PFP!$H$30,2) -> 0
A12: A3 | B12: FGTS | E12: 0.08 | F12: =ROUND(E12*PFP!$H$30,2) -> 0
A13: A4 | B13: Incra | E13: 0.002 | F13: =ROUND(E13*PFP!$H$30,2) -> 0
A14: A5 | B14: Salário Educação | E14: 0.025 | F14: =ROUND(E14*PFP!$H$30,2) -> 0
A15: A6 | B15: Sebrae | E15: 0.006 | F15: =ROUND(E15*PFP!$H$30,2) -> 0
A16: A7 | B16: Seguro contra acidente | E16: 0.03 | F16: =ROUND(E16*PFP!$H$30,2) -> 0
A17: A8 | B17: Senai | E17: 0.01 | F17: =ROUND(E17*PFP!$H$30,2) -> 0
A18: A9 | B18: Sesi | E18: 0.015 | F18: =ROUND(E18*PFP!$H$30,2) -> 0
A19: B | B19: ENCARGOS SOCIAIS QUE RECEBEM INCIDÊNCIA DE "A" | E19: =ROUND(SUM(E20:E26),4) -> 0.1944 | F19: =ROUND(E19*PFP!$H$30,2) -> 0
A20: B1 | B20: 13º Salário | E20: 0.0833 | F20: =ROUND(E20*PFP!$H$30,2) -> 0
A21: B2 | B21: Auxilio Enfermidade | E21: 0.0069 | F21: =ROUND(E21*PFP!$H$30,2) -> 0
A22: B3 | B22: Licença Paternidade | E22: 0.0006 | F22: =ROUND(E22*PFP!$H$30,2) -> 0
A23: B4 | B23: Faltas Justificadas | E23: 0.0056 | F23: =ROUND(E23*PFP!$H$30,2) -> 0
A24: B5 | B24: Auxílio Acidente de Trabalho | E24: 0.0009 | F24: =ROUND(E24*PFP!$H$30,2) -> 0
A25: B6 | B25: Férias Gozadas | E25: 0.0968 | F25: =ROUND(E25*PFP!$H$30,2) -> 0
A26: B7 | B26: Salário Maternidade | E26: 0.0003 | F26: =ROUND(E26*PFP!$H$30,2) -> 0
A27: C | B27: ENCARGOS SOCIAIS QUE NÃO RECEBEM INCIDÊNCIA DE "A" | E27: =ROUND(SUM(E28:E32),4) -> 0.0768 | F27: =ROUND(E27*PFP!H30,2) -> 0
A28: C1 | B28: Aviso Prévio Indenizado | E28: 0.03 | F28: =ROUND(E28*PFP!$H$30,2) -> 0
A29: C2 | B29: Aviso Prévio Trabalhado | E29: 0.0007 | F29: =ROUND(E29*PFP!$H$30,2) -> 0
A30: C3 | B30: Férias Indenizadas | E30: 0.0135 | F30: =ROUND(E30*PFP!$H$30,2) -> 0
A31: C4 | B31: Depósito Rescisão Sem Justa Causa | E31: 0.0301 | F31: =ROUND(E31*PFP!$H$30,2) -> 0
A32: C5 | B32: Indenização Adicional | E32: 0.0025 | F32: =ROUND(E32*PFP!$H$30,2) -> 0
A33: D | B33: REINCIDÊNCIAS | E33: =ROUND(SUM(E34:E35),4) -> 0.0762 | F33: =ROUND(E33*PFP!H30,2) -> 0
A34: D1 | B34: Reincidência de "A" sobre "B" | E34: =ROUND(E9*E19,4) -> 0.0735 | F34: =ROUND(E34*PFP!$H$30,2) -> 0
A35: D2 | B35: Reincidência de "A" sobre Aviso Prévio Trabalhado e reincidência do FGTS sobre Aviso Prévio Indenizado | E35: =ROUND((E29*E9)+(E28*E12),4) -> 0.0027 | F35: =ROUND(E35*PFP!$H$30,2) -> 0
A36: K1 | B36: ENCARGOS SOCIAIS | E36: =ROUND(E9+E19+E27+E33,4) -> 0.7254 | F36: =ROUND(E36*PFP!H30,2) -> 0
A37: Ka | B37: TAXA DE RESSARCIMENTO DE DESPESAS E ENCARGOS SOBRE MO CV | E37: =ROUND((1+E36+PFP3_FatorKc!E15)*(1+PFP3_FatorKc!E14)*(1+PFP3_FatorKc!E10),4) -> 2.3551
A38: NOME DO INFORMANTE: | E38: QUALIFICAÇÃO
A40: ASSINATURA: | E40: DATA:
A42: OBSERVAÇÃO:
A43: 1 - DISCRIMINAR OS ENCARGOS SOCIAIS COM SEUS RESPECTIVOS PERCENTUAS TOTALIZANDO OS MESMOS.
A44: 2 - APLICAR O % TOTAL P/ CALCULAR OS E. SOCIAIS INCIDENTES NA MÃO-DE-OBRA COM VÍNCULO PERMANENTE
A45: Ka - Taxa de Ressarcimento de Despesas e Encargos sobre a Mão de Obra COM VINCULO (incide apenas no Insumo Codigo M.O.)
A46: Ka = (1 + K1 + K2) x (1 + K3) x (1 + K4)

Sheet PFP2.2_FatorKb
A1: DETALHAMENTO DOS ENCARGOS SOCIAIS: Kb | F1: CODIGO:
F2: PFP-2.2
A3: NOME DA CONSULTORA:
A5: PROJETO: | C5: CONTRATANTE: | F5: =PFP2.1_FatorKa!F5 -> BASE: Ago/2020
A6: =PFP!A6 -> Estudos, Projetos Básico e Executivo - Orla Macapá - AP | C6: =PFP!F6 -> Codevasf (Sede) | F6: =PFP2.1_FatorKa!F6 -> SICRO: ago/20 CODE: Ago/20
A7: DISCRIMINAÇÃO | E7: VALORES
E8: % | F8: R$
A9: A | B9: ENCARGOS SOCIAIS BÁSICOS | E9: =ROUND(SUM(E10:E18),4) -> 0.2 | F9: =ROUND(E9*PFP!$H$30,2) -> 0
A10: A1 | B10: Seconci | E10: 0 | F10: =ROUND(E10*PFP!$H$30,2) -> 0
A11: A2 | B11: INSS | E11: 0.2 | F11: =ROUND(E11*PFP!$H$30,2) -> 0
A12: A3 | B12: FGTS | E12: 0 | F12: =ROUND(E12*PFP!$H$30,2) -> 0
A13: A4 | B13: Incra | E13: 0 | F13: =ROUND(E13*PFP!$H$30,2) -> 0
A14: A5 | B14: Salário Educação | E14: 0 | F14: =ROUND(E14*PFP!$H$30,2) -> 0
A15: A6 | B15: Sebrae | E15: 0 | F15: =ROUND(E15*PFP!$H$30,2) -> 0
A16: A7 | B16: Seguro contra acidente | E16: 0 | F16: =ROUND(E16*PFP!$H$30,2) -> 0
A17: A8 | B17: Senai | E17: 0 | F17: =ROUND(E17*PFP!$H$30,2) -> 0
A18: A9 | B18: Sesi | E18: 0 | F18: =ROUND(E18*PFP!$H$30,2) -> 0
A19: B | B19: ENCARGOS SOCIAIS QUE RECEBEM INCIDÊNCIA DE "A" | E19: =ROUND(SUM(E20:E26),4) -> 0 | F19: =ROUND(E19*PFP!$H$30,2) -> 0
A20: B1 | B20: 13º Salário | E20: 0 | F20: =ROUND(E20*PFP!$H$30,2) -> 0
A21: B2 | B21: Auxilio Enfermidade | E21: 0 | F21: =ROUND(E21*PFP!$H$30,2) -> 0
A22: B3 | B22: Licença Paternidade | E22: 0 | F22: =ROUND(E22*PFP!$H$30,2) -> 0
A23: B4 | B23: Faltas Justificadas | E23: 0 | F23: =ROUND(E23*PFP!$H$30,2) -> 0
A24: B5 | B24: Auxílio Acidente de Trabalho | E24: 0 | F24: =ROUND(E24*PFP!$H$30,2) -> 0
A25: B6 | B25: Férias Gozadas | E25: 0 | F25: =ROUND(E25*PFP!$H$30,2) -> 0
A26: B7 | B26: Salário Maternidade | E26: 0 | F26: =ROUND(E26*PFP!$H$30,2) -> 0
A27: C | B27: ENCARGOS SOCIAIS QUE NÃO RECEBEM INCIDÊNCIA DE "A" | E27: =ROUND(SUM(E28:E32),4) -> 0 | F27: =ROUND(E27*PFP!$H$30,2) -> 0
A28: C1 | B28: Aviso Prévio Indenizado | E28: 0 | F28: =ROUND(E28*PFP!$H$30,2) -> 0
A29: C2 | B29: Aviso Prévio Trabalhado | E29: 0 | F29: =ROUND(E29*PFP!$H$30,2) -> 0
A30: C3 | B30: Férias Indenizadas | E30: 0 | F30: =ROUND(E30*PFP!$H$30,2) -> 0
A31: C4 | B31: Depósito Rescisão Sem Justa Causa | E31: 0 | F31: =ROUND(E31*PFP!$H$30,2) -> 0
A32: C5 | B32: Indenização Adicional | E32: 0 | F32: =ROUND(E32*PFP!$H$30,2) -> 0
A33: D | B33: REINCIDÊNCIAS | E33: =ROUND(SUM(E34:E35),4) -> 0 | F33: =ROUND(E33*PFP!$H$30,2) -> 0
A34: D1 | B34: Reincidência de "A" sobre "B" | E34: =ROUND(E9*E19,4) -> 0 | F34: =ROUND(E34*PFP!$H$30,2) -> 0
A35: D2 | B35: Reincidência de "A" sobre Aviso Prévio Trabalhado e reincidência do FGTS sobre Aviso Prévio Indenizado | E35: =ROUND(E9*E29,4)+ROUND(E28*E12,4) -> 0 | F35: =ROUND(E35*PFP!$H$30,2) -> 0
A36: K1 | B36: ENCARGOS SOCIAIS | E36: =ROUND(E9+E19+E27+E33,4) -> 0.2 | F36: =ROUND(E36*PFP!$H$30,2) -> 0
A37: Kb | B37: TAXA DE RESSARCIMENTO DE DESPESAS E ENCARGOS SOBRE MO SV | E37: =ROUND((1+E36+PFP3_FatorKc!E15)*(1+PFP3_FatorKc!E14)*(1+PFP3_FatorKc!E10),4) -> 1.6953
A38: NOME DO INFORMANTE: | E38: QUALIFICAÇÃO
A40: ASSINATURA: | E40: DATA:
A42: OBSERVAÇÃO:
A43: 1 - DISCRIMINAR OS ENCARGOS SOCIAIS COM SEUS RESPECTIVOS PERCENTUAS TOTALIZANDO OS MESMOS.
A44: 2 - APLICAR O % TOTAL P/ CALCULAR OS E. SOCIAIS INCIDENTES NA MÃO-DE-OBRA SEM VÍNCULO PERMANENTE
A45: Kb - Taxa de Ressarcimento de Despesas e Encargos sobre a Mão de Obra SEM VINCULO (incide apenas no Insumo Codigo M.O.)
A46: Kb = (1 + K1 + K2) x (1 + K3) x (1 + K4)

Sheet PFP3_FatorKc
A1: DESPESAS FISCAIS E CUSTOS DIVERSOS: Kc | F1: CODIGO:
F2: PFP-3
A3: NOME DA CONSULTORA:
A5: PROJETO: | C5: CONTRATANTE: | F5: BASE: Abril/2020
A6: =PFP!A6 -> Estudos, Projetos Básico e Executivo - Orla Macapá - AP | C6: =PFP!F6 -> Codevasf (Sede)
A7: DISCRIMINAÇÃO 1 | D7: VALORES
D8: % preço | E8: % custo | F8: R$
A9: K4 | B9: DESPESAS FISCAIS | D9: K' (%)2 | E9: K (%)3
D10: =ROUND(D11+D12+D13,4) -> 0.124 | E10: =ROUND(E11+E12+E13,4) -> 0.1416 | F10: =E10*SUM((PFP!$J$10+PFP!$J$11+PFP!$J$12+PFP!$J$13+PFP!$J$14+PFP!$J$15+PFP!$J$16+PFP!$J$17+PFP!$J$18)*(1+PFP2.1_FatorKa!$E$36)+((PFP!$J$8+PFP!$J$9)*(1+PFP2.2_FatorKb!$E$36))+(PFP!$J$20+PFP!$J$21+PFP!$J$22+PFP!$J$23+PFP!$J$24+PFP!$J$25+PFP!$J$26+PFP!$J$27)+PFP3_FatorKc!$F$15) -> 0
A11: 1 | B11: ISS | D11: 0.05 | E11: =ROUND((1/(1-$D$10))*D11,4) -> 0.0571 | F11: =E11*SUM((PFP!$J$10+PFP!$J$11+PFP!$J$12+PFP!$J$13+PFP!$J$14+PFP!$J$15+PFP!$J$16+PFP!$J$17+PFP!$J$18)*(1+PFP2.1_FatorKa!$E$36)+((PFP!$J$8+PFP!$J$9)*(1+PFP2.2_FatorKb!$E$36))+(PFP!$J$20+PFP!$J$21+PFP!$J$22+PFP!$J$23+PFP!$J$24+PFP!$J$25+PFP!$J$26+PFP!$J$27)+PFP3_FatorKc!$F$15) -> 0
A12: 2 | B12: PIS - aliquota efetiva com percentual-desconto de 20% | D12: =ROUND(1.65%*0.8,4) -> 0.0132 | E12: =ROUND((1/(1-$D$10))*D12,4) -> 0.0151 | F12: =E12*SUM((PFP!$J$10+PFP!$J$11+PFP!$J$12+PFP!$J$13+PFP!$J$14+PFP!$J$15+PFP!$J$16+PFP!$J$17+PFP!$J$18)*(1+PFP2.1_FatorKa!$E$36)+((PFP!$J$8+PFP!$J$9)*(1+PFP2.2_FatorKb!$E$36))+(PFP!$J$20+PFP!$J$21+PFP!$J$22+PFP!$J$23+PFP!$J$24+PFP!$J$25+PFP!$J$26+PFP!$J$27)+PFP3_FatorKc!$F$15) -> 0
A13: 3 | B13: COFINS - aliquota efetiva com percentual-desconto de 20% | D13: =ROUND(7.6%*0.8,4) -> 0.0608 | E13: =ROUND((1/(1-$D$10))*D13,4) -> 0.0694 | F13: =E13*SUM((PFP!$J$10+PFP!$J$11+PFP!$J$12+PFP!$J$13+PFP!$J$14+PFP!$J$15+PFP!$J$16+PFP!$J$17+PFP!$J$18)*(1+PFP2.1_FatorKa!$E$36)+((PFP!$J$8+PFP!$J$9)*(1+PFP2.2_FatorKb!$E$36))+(PFP!$J$20+PFP!$J$21+PFP!$J$22+PFP!$J$23+PFP!$J$24+PFP!$J$25+PFP!$J$26+PFP!$J$27)+PFP3_FatorKc!$F$15) -> 0
A14: K3 | B14: REMUNERAÇÃO DA EMPRESA (LUCRO) | E14: 0.1 | F14: =E14*SUM((PFP!$J$10+PFP!$J$11+PFP!$J$12+PFP!$J$13+PFP!$J$14+PFP!$J$15+PFP!$J$16+PFP!$J$17+PFP!$J$18)*(1+PFP2.1_FatorKa!$E$36)+((PFP!$J$8+PFP!$J$9)*(1+PFP2.2_FatorKb!$E$36))+(PFP!$J$20+PFP!$J$21+PFP!$J$22+PFP!$J$23+PFP!$J$24+PFP!$J$25+PFP!$J$26+PFP!$J$27)+PFP3_FatorKc!$F$15) -> 0
A15: K2 | B15: CUSTOS DA ADMINISTRAÇÃO CENTRAL | E15: =ROUND(SUM(E16:E18),4) -> 0.15 | F15: =ROUND(E15*(PFP!$H$30),2) -> 0
A16: 4 | B16: Custos da administração central da empresa (diretoria, pessoal técnico de apoio e pessoal administrativo não diretamente vinculado à prestação dos serviços) | E16: 0.1 | F16: =ROUND(E16*(PFP!$H$30),2) -> 0
A17: 5 | B17: Outras despesas que afetam o custo de produção como treinamento, biblioteca, programa de qualidade, programa de benefícios, auditoria interna e externa | E17: 0.03 | F17: =ROUND(E17*(PFP!$H$30),2) -> 0
A18: 6 | B18: Despesas fixas e variaveis com patrimônio, aluguéis, comunicação, manutenção e transporte não diretamente relacionados com o custo direto dos serviços | E18: 0.02 | F18: =ROUND(E18*(PFP!$H$30),2) -> 0
A19: Kc | B19: TAXA RESSARCIMENTO DE DESPESAS SOBRE CUSTOS DIVERSOS | E19: =ROUND((1+E14)*(1+E10),4) -> 1.2558
A20: NOME DO INFORMANTE: | E20: QUALIFICAÇÃO:
A22: ASSINATURA: | E22: DATA:
A24: Observação:
A25: 1 - RELACIONAR OS CUSTOS DE ADMINISTRAÇÃO COM RESPECTIVOS PERCENTUAIS INCIDENTES NA MÃO -DE-OBRA
A26: 1 - DISCRIMINAR OS TRIBUTOS QUE INCIDEM SOBRE OS CUSTOS DA PRESTAÇÃO DOS SERVIÇOS
A27: 2 - K4 = INDICAR % DE CADA TRIBUTO E A SOMA DOS MESMOS (ex: ISS 5% + PIS 1,65% + COFINS 7,60% = 14,25%)
A28: 3 - PIS e COFINS, Regime de Incidencia Acumulativa (0,65% e 3,00% - sem percentual de desconto) ou em Regime de Incidencia Não Acumulativa (1,65% e 7,60% - aplicável percentual de desconto) de acordo com a forma de apuração do lucro no IRPJ. APRESENTAR COMPROVANTES de aproveitamento de créditos tributários dos últimos 12 meses em caso de aplicação de "percentual de desconto".
A29: 4 - AS DESPESAS FISCAIS (K4) INCIDEM SOBRE O TOTAL DA FATURA E NÃO SOBRE OS CUSTOS INCORRIDOS,
A30: DEVENDO SER CALCULADO O K4' APLICANDO-SE A SEGUINTE FÓRMULA:
A31: K4' = { [ 1 / ( 1 - K4) ] - 1 } x 100
A32: =CONCATENATE(" K4' = { [ 1 / ( 1 - ",D10," ) ] - 1 } x 100") -> K4' = { [ 1 / ( 1 - 0,124 ) ] - 1 } x 100
A33: Kc - Taxa de Ressarcimento de Despesas sobre Custos Diversos (incide sobre os Insumos Codigo DP e ME)
A34: Kc = (1 + K3) x (1 + K4)
A35: K2 - Incide sobre o Custo Total (CT) da Mão de Obra (MO)
A36: K3 - Incide sobre o Custo Total (CT) Mão de Obra com encargos (MO x Ka ou Kb), demais Custos (DP e EQ), e Custos da Administração Central (K2)
A37: K4 - Incide sobre o Custo Total (CT) Mão de Obra com encargos (MO x Ka ou Kb), demais Custos (DP e EQ), e Custos da Administração Central (K2) e Lucro (K3)

Sheet CRO1_Ins-Pro
A1: INSUMOS POR ETAPA/PRODUTO | G1: CODIGO:
G2: CRO-1
A3: Cod. | B3: Categoria / Insumo | C3: Uni | D3: Qde | E3: CUD | F3: PU | G3: FatorK | H3: 1. EVTEA | I3: 2. Est.Amb | J3: 3.PB/PE | K3: Rel. Final
A4: P0 | B4: Engenheiro Sênior (Coordenador) | C4: mês | D4: =SUM(H4:J4) -> 0 | E4: =PFP!G8 -> 18313.67 | F4: =ROUND(E4*G4,2) -> 31047.16 | G4: =PFP!I8 -> 1.6953 | H4: ='CRO2_Ins-Mes'!E56 -> 0 | I4: ='CRO2_Ins-Mes'!E77 -> 0 | J4: ='CRO2_Ins-Mes'!E98 -> 0
A5: P1 | B5: Engenheiro Sênior | C5: mês | D5: 0 | E5: =PFP!G9 -> 14430.48 | F5: 24463.99 | G5: =PFP!I9 -> 1.6953 | H5: ='CRO2_Ins-Mes'!E57 -> 0 | I5: ='CRO2_Ins-Mes'!E78 -> 0 | J5: ='CRO2_Ins-Mes'!E99 -> 0
A6: P2 | B6: Engenheiro Pleno | C6: mês | D6: 0 | E6: =PFP!G10 -> 11289.32 | F6: 26587.48 | G6: =PFP!I10 -> 2.3551 | H6: ='CRO2_Ins-Mes'!E58 -> 0 | I6: ='CRO2_Ins-Mes'!E79 -> 0 | J6: ='CRO2_Ins-Mes'!E100 -> 0
A7: P3 | B7: Engenheiro Júnior | C7: mês | D7: 0 | E7: =PFP!G11 -> 9287.81 | F7: 21873.72 | G7: =PFP!I11 -> 2.3551 | H7: ='CRO2_Ins-Mes'!E59 -> 0 | I7: ='CRO2_Ins-Mes'!E80 -> 0 | J7: ='CRO2_Ins-Mes'!E101 -> 0
A8: S1 | B8: Analista Sênior | C8: mês | D8: 0 | E8: =PFP!G12 -> 5963.68 | F8: 14045.06 | G8: =PFP!I12 -> 2.3551 | H8: ='CRO2_Ins-Mes'!E60 -> 0 | I8: ='CRO2_Ins-Mes'!E81 -> 0 | J8: ='CRO2_Ins-Mes'!E102 -> 0
A9: S2 | B9: Analista Pleno | C9: mês | D9: 0 | E9: =PFP!G13 -> 4782.69 | F9: 11263.71 | G9: =PFP!I13 -> 2.3551 | H9: ='CRO2_Ins-Mes'!E61 -> 0 | I9: ='CRO2_Ins-Mes'!E82 -> 0 | J9: ='CRO2_Ins-Mes'!E103 -> 0
A10: S3 | B10: Analista Júnior | C10: mês | D10: 0 | E10: =PFP!G14 -> 3601.69 | F10: 8482.34 | G10: =PFP!I14 -> 2.3551 | H10: ='CRO2_Ins-Mes'!E62 -> 0 | I10: ='CRO2_Ins-Mes'!E83 -> 0 | J10: ='CRO2_Ins-Mes'!E104 -> 0
A11: T1 | B11: Técnico Sênior | C11: mês | D11: 0 | E11: =PFP!G15 -> 4989.91 | F11: 11751.74 | G11: =PFP!I15 -> 2.3551 | H11: ='CRO2_Ins-Mes'!E63 -> 0 | I11: ='CRO2_Ins-Mes'!E84 -> 0 | J11: ='CRO2_Ins-Mes'!E105 -> 0
A12: T2 | B12: Técnico Pleno | C12: mês | D12: 0 | E12: =PFP!G16 -> 3773.62 | F12: 8887.25 | G12: =PFP!I16 -> 2.3551 | H12: ='CRO2_Ins-Mes'!E64 -> 0 | I12: ='CRO2_Ins-Mes'!E85 -> 0 | J12: ='CRO2_Ins-Mes'!E106 -> 0
A13: T3 | B13: Técnico Junior | C13: mês | D13: 0 | E13: =PFP!G17 -> 3028.85 | F13: 7133.24 | G13: =PFP!I17 -> 2.3551 | H13: ='CRO2_Ins-Mes'!E65 -> 0 | I13: ='CRO2_Ins-Mes'!E86 -> 0 | J13: ='CRO2_Ins-Mes'!E107 -> 0
A14: A1 | B14: Administrativo (Secretariado) | C14: dia | D14: 0 | E14: =PFP!G18 -> 3147.75 | F14: 7413.27 | G14: =PFP!I18 -> 2.3551 | H14: ='CRO2_Ins-Mes'!E66 -> 0 | I14: ='CRO2_Ins-Mes'!E87 -> 0 | J14: ='CRO2_Ins-Mes'!E108 -> 0
A15: A2 | B15: Auxiliar | C15: dia | D15: 0 | E15: =PFP!G19 -> 1083.5 | F15: =ROUND(E15*G15,2) -> 2551.75 | G15: =PFP!I19 -> 2.3551 | H15: ='CRO2_Ins-Mes'!E67 -> 0 | I15: ='CRO2_Ins-Mes'!E88 -> 0 | J15: ='CRO2_Ins-Mes'!E109 -> 0
A16: V1 | B16: Diárias | C16: dia | D16: 0 | E16: =PFP!G20 -> 239 | F16: 300.14 | G16: =PFP!I20 -> 1.2558 | H16: ='CRO2_Ins-Mes'!E68 -> 0 | I16: ='CRO2_Ins-Mes'!E89 -> 0 | J16: ='CRO2_Ins-Mes'!E110 -> 0
A17: V2 | B17: Aluguel Sedan 71 a 115 CV | C17: un | D17: 0 | E17: =PFP!G21 -> 111.6313333 | F17: 140.19 | G17: =PFP!I21 -> 1.2558 | H17: ='CRO2_Ins-Mes'!E69 -> 0 | I17: ='CRO2_Ins-Mes'!E90 -> 0 | J17: ='CRO2_Ins-Mes'!E111 -> 0
A18: V3 | B18: Caminhonete 140 a 165 CV | C18: un | D18: 0 | E18: =PFP!G22 -> 166.8886667 | F18: 209.58 | G18: =PFP!I22 -> 1.2558 | H18: ='CRO2_Ins-Mes'!E70 -> 0 | I18: ='CRO2_Ins-Mes'!E91 -> 0 | J18: ='CRO2_Ins-Mes'!E112 -> 0
A19: V4 | B19: Passagens Aéreas (ida e volta) | C19: un | D19: 0 | E19: =PFP!G23 -> 949.4 | F19: 1192.26 | G19: =PFP!I23 -> 1.2558 | H19: ='CRO2_Ins-Mes'!E71 -> 0 | I19: ='CRO2_Ins-Mes'!E92 -> 0 | J19: ='CRO2_Ins-Mes'!E113 -> 0
A20: M1 | B20: Pen Drive 16 Gb | C20: un | D20: 0 | E20: =PFP!G24 -> 40.38666667 | F20: 50.72 | G20: =PFP!I24 -> 1.2558 | H20: ='CRO2_Ins-Mes'!E72 -> 0 | I20: ='CRO2_Ins-Mes'!E93 -> 0 | J20: ='CRO2_Ins-Mes'!E114 -> 0
A21: M2 | B21: HD Externo 2 Tb | C21: un | D21: 0 | E21: =PFP!G25 -> 543.0833333 | F21: 682 | G21: =PFP!I25 -> 1.2558 | H21: ='CRO2_Ins-Mes'!E73 -> 0 | I21: ='CRO2_Ins-Mes'!E94 -> 0 | J21: ='CRO2_Ins-Mes'!E115 -> 0
A22: M3 | B22: Relatório Parcial | C22: un | D22: 0 | E22: =PFP!G26 -> 33.35 | F22: 41.88 | G22: =PFP!I26 -> 1.2558 | H22: ='CRO2_Ins-Mes'!E74 -> 0 | I22: ='CRO2_Ins-Mes'!E95 -> 0 | J22: ='CRO2_Ins-Mes'!E116 -> 0
A23: M4 | B23: Relatório Final | C23: un | D23: 0 | E23: =PFP!G27 -> 1478.8 | F23: 1857.08 | G23: =PFP!I27 -> 1.2558 | H23: ='CRO2_Ins-Mes'!E75 -> 0 | I23: ='CRO2_Ins-Mes'!E96 -> 0 | J23: ='CRO2_Ins-Mes'!E117 -> 0
A24: TP | B24: Total Serviços Cartográficos | C24: un | D24: 0 | E24: =PFP!G28 -> - | F24: =PFP!H28 -> 318723.87 | G24: =PFP!I28 -> - | H24: 0 | I24: ='CRO2_Ins-Mes'!E97 -> 0 | J24: ='CRO2_Ins-Mes'!E118 -> 0
A25: GT | B25: Total Serviços Geotécnicos | C25: um | D25: 0 | E25: =PFP!G29 -> - | F25: =PFP!H29 -> 125619.18 | G25: =PFP!I29 -> - | H25: 0 | I25: 0 | J25: ='CRO2_Ins-Mes'!E119 -> 0
A26: TOTAL | B26: VALOR POR PRODUTO | C26: R$ | D26: =SUM(H26:K26) -> 0 | H26: =SUM(H4:H25*$F$4:$F$25)*0.9 -> 0 | I26: =SUM(I4:I25*$F$4:$F$25)*0.9 -> 0 | J26: =SUM(J4:J25*$F$4:$F$25)*0.9 -> 0 | K26: =((H26/0.9)+(I26/0.9)+(J26/0.9))*0.1 -> 0
C27: % | D27: =SUM(H27:K27) ->  | H27: =ROUND(H26/$D$26,5) ->  | I27: =ROUND(I26/$D$26,5) ->  | J27: =ROUND(J26/$D$26,5) ->  | K27: =ROUND(K26/$D$26,5) -> 
A28: OBSERVAÇÃO:
A29: P - Profissionais nível superior nas áreas de Engenharia, Química, Arquitetura, Agronomia e Veterinária, conforme disposições da Lei 4.950-A/66
A30: S - Profissionais de nível superior nas demais áreas de atuação, incluindo Arqueólogo, Biólogo, Geógrafo e Socioólogo
A31: T - Profissionais de nível médio técnico nas diversas áreas de atuação
A32: A - Profissionais de nível médio de apoio técnico-administrativo

Sheet CRO2_Ins-Mes
A1: CRONOGRAMA SIMPLIFICADO
A3: Cod1 | B3: Cod2 | C3: Produtos | D3: Uni | E3: Qde | F3: 1 | G3: 2 | H3: 3 | I3: 4 | J3: 5 | K3: 6 | L3: 7 | M3: 8 | N3: 9 | O3: 10 | P3: 11 | Q3: 12 | R3: 13 | S3: 14 | T3: 15 | U3: 16 | V3: 17 | W3: 18 | X3: 19 | Y3: 20 | Z3: 21 | AA3: 22 | AB3: 23 | AC3: 24 | AD3: 25 | AE3: 26 | AF3: 27 | AG3: 28 | AH3: 29 | AI3: 30 | AJ3: 31 | AK3: 32 | AL3: 33 | AM3: 34 | AN3: 35
A4: 1 | B4: 1.0 | C4: Relatório de Programação/Relatório Fotográfico-Lev.Projetos/Relatório de Dados Levantados | D4: mês | E4: =SUM(F4:AN4) -> 0
A5: 1 | B5: 1.1 | C5: Estudos Ambientais | D5: mês | E5: 0
A6: 1 | B6: 1.2 | C6: Relatório de Estudo | D6: mês | E6: 0
A7: 1 | B7: 1.3 | C7: Memória Justificativa | D7: mês | E7: 0
A8: 1 | B8: 1.4 | C8: Relatório de Custos | D8: mês | E8: 0
A9: 1 | B9: 1.5 | C9: Relatório Final | D9: mês | E9: 0
A10: 1 | B10: 1 | C10: Estudo de Viabilidade Técnica, Econômica e Ambiental | D10: mês | E10: 0 | F10: =SUBTOTAL(4,F4:F9) -> 0 | G10: 0 | H10: 0 | I10: =SUBTOTAL(4,I4:I9) -> 0 | J10: 0 | K10: 0 | L10: 0 | M10: 0 | N10: 0 | O10: 0 | P10: 0 | Q10: 0 | R10: 0 | S10: 0 | T10: 0 | U10: 0 | V10: 0 | W10: 0 | X10: 0 | Y10: 0 | Z10: 0 | AA10: 0 | AB10: 0 | AC10: 0 | AD10: 0 | AE10: 0 | AF10: 0 | AG10: 0 | AH10: 0 | AI10: 0 | AJ10: 0 | AK10: 0 | AL10: 0 | AM10: 0 | AN10: 0
A11: 2 | B11: 2.1 | C11: Estudo Autorização de Supressão Vegetal, Unidades de Conservação e Áreas Prioritárias | D11: mês | E11: =SUM(F11:AN11) -> 0
A12: 2 | B12: 2.2 | C12: Caracterização Empreendimento e Legislação Ambiental | D12: mês | E12: =SUM(F12:AN12) -> 0
A13: 2 | B13: 2.3 | C13: Definição das Áreas de Influência | D13: mês | E13: 0
A14: 2 | B14: 2.4 | C14: Diagnóstico Ambiental dos Meios Físico, Biótico e Socioeconômico | D14: mês | E14: 0
A15: 2 | B15: 2.5 | C15: Avaliação dos Impactos Ambientais | D15: mês | E15: 0
A16: 2 | B16: 2.6 | C16: Relatório dos Impactos no Meio Ambiente | D16: mês | E16: 0
A17: 2 | B17: 2.7 | C17: Programa Ambiental, Medidas Mitigadoras e Compensatória | D17: mês | E17: 0
A18: 2 | B18: 2.8 | C18: Audiência e Consultoria | D18: mês | E18: 0
A19: 2 | B19: 2.9 | C19: Relatório Final | D19: mês | E19: 0
A20: 2 | B20: 2 | C20: Estudos Ambientais | D20: mês | E20: =SUM(F20:AN20) -> 0 | F20: =SUBTOTAL(4,F11:F19) -> 0 | G20: =SUBTOTAL(4,G11:G19) -> 0 | H20: 0 | I20: 0 | J20: 0 | K20: 0 | L20: 0 | M20: 0 | N20: 0 | O20: 0 | P20: 0 | Q20: 0 | R20: 0 | S20: 0 | T20: 0 | U20: 0 | V20: 0 | W20: 0 | X20: 0 | Y20: 0 | Z20: 0 | AA20: 0 | AB20: 0 | AC20: 0 | AD20: 0 | AE20: 0 | AF20: 0 | AG20: 0 | AH20: 0 | AI20: 0 | AJ20: 0 | AK20: 0 | AL20: 0 | AM20: 0 | AN20: 0
A21: 3 | B21: 3.1 | C21: Estudo e Relatório Iniciais | D21: mês | E21: =SUM(F21:AN21) -> 0
A22: 3 | B22: 3.2 | C22: Projeto de Desapropriação | D22: mês | E22: 0
A23: 3 | B23: 3.3 | C23: Programa de Espaço (estacionamentos, áreas verdes, circulação de pedestres, ciclovias, etc.) | D23: mês | E23: 0
A24: 3 | B24: 3.4 | C24: Projeto de Paisagismo | D24: mês | E24: 0
A25: 3 | B25: 3.5 | C25: Equipamentos Urbanos (bancos, lixeiras, cercas, bebedouros, etc.) | D25: mês | E25: 0
A26: 3 | B26: 3.6 | C26: Projeto de Obras Especiais (quadras, fontes, passarelas, etc.) | D26: mês | E26: 0
A27: 3 | B27: 3.7 | C27: Projeto de Edificações | D27: mês | E27: 0
A28: 3 | B28: 3.8 | C28: Estudos Hidrológicos | D28: mês | E28: 0
A29: 3 | B29: 3.9 | C29: Estudos de Marés | D29: mês | E29: 0
A30: 3 | B30: 3.10 | C30: Estudos Topográficos | D30: mês | E30: 0
A31: 3 | B31: 3.11 | C31: Estudos Geológicos/Geotécnicos | D31: mês | E31: 0
A32: 3 | B32: 3.12 | C32: Projeto de Terraplenagem | D32: mês | E32: 0
A33: 3 | B33: 3.13 | C33: Projeto de Recomposição e Estabilização de Taludes | D33: mês | E33: 0
A34: 3 | B34: 3.14 | C34: Dimensionamento das Estruturas de Contenção | D34: mês | E34: 0
A35: 3 | B35: 3.15 | C35: Projeto Geométrico e de Pavimentação | D35: mês | E35: 0
A36: 3 | B36: 3.16 | C36: Projeto de Ciclovias | D36: mês | E36: 0
A37: 3 | B37: 3.17 | C37: Projeto Elétrico de Edificações e de Iluminação Pública | D37: mês | E37: 0
A38: 3 | B38: 3.18 | C38: Projeto Hidráulico | D38: mês | E38: 0
A39: 3 | B39: 3.19 | C39: Projeto de Drenagem | D39: mês | E39: 0
A40: 3 | B40: 3.20 | C40: Orçamento, Quantitativo e Especificações Técnicas | D40: mês | E40: 0
A41: 3 | B41: 3.21 | C41: Elaboração de Termo de Referência para contratação de Execução de Obra | D41: mês | E41: 0
A42: 3 | B42: 3.22 | C42: Divulgação, Apresentação, Detalhamentos e Cortes (Sketchup, DWG, etc.) | D42: mês | E42: 0
A43: 3 | B43: 3 | C43: Estudos de Campo, Projeto Básico e Projeto Executivo | D43: mês | E43: 0 | F43: =SUBTOTAL(4,F21:F42) -> 0 | G43: 0 | H43: 0 | I43: 0 | J43: 0 | K43: 0 | L43: 0 | M43: 0 | N43: 0 | O43: 0 | P43: 0 | Q43: 0 | R43: 0 | S43: 0 | T43: 0 | U43: 0 | V43: 0 | W43: 0 | X43: 0 | Y43: 0 | Z43: 0 | AA43: 0 | AB43: 0 | AC43: 0 | AD43: 0 | AE43: 0 | AF43: 0 | AG43: 0 | AH43: 0 | AI43: 0 | AJ43: 0 | AK43: 0 | AL43: 0 | AM43: 0 | AN43: 0
A44: 4 | B44: 4.1 | C44: Projeto de Obras Especiais (quadras, fontes, passarelas, etc.) | D44: mês | E44: 0
A45: 4 | B45: 4.2 | C45: Projeto Estrutural de Edificações | D45: mês | E45: 0
A46: 4 | B46: 4.3 | C46: Dimensionamento das Estruturas de Contenção | D46: mês | E46: 0
A47: 4 | B47: 4.4 | C47: Projeto Geométrico e de Pavimentação | D47: mês | E47: 0
A48: 4 | B48: 4.5 | C48: Projeto Elétrico de Edificações e de Iluminação Pública | D48: mês | E48: 0
A49: 4 | B49: 4.6 | C49: Projeto Hidráulico | D49: mês | E49: 0
A50: 4 | B50: 4.7 | C50: Projeto de Drenagem | D50: mês | E50: 0
A51: 4 | B51: 4.8 | C51: Orçamento, Quantitativo e Especificações Técnicas | D51: mês | E51: 0
A52: 4 | B52: 4.9 | C52: Divulgação, Apresentação, Detalhamentos e Cortes (Sketchup, DWG, etc.) | D52: mês | E52: 0
A53: 4 | B53: 4 | C53: Estudos de Campo e Projeto Básico | D53: mês | E53: 0 | F53: =SUBTOTAL(4,F31:F52) -> 0 | G53: =SUBTOTAL(4,G31:G52) -> 0 | H53: 0 | I53: 0 | J53: 0 | K53: 0 | L53: 0 | M53: 0 | N53: 0 | O53: 0 | P53: 0 | Q53: 0 | R53: 0 | S53: 0 | T53: 0 | U53: 0 | V53: 0 | W53: 0 | X53: 0 | Y53: 0 | Z53: 0 | AA53: 0 | AB53: 0 | AC53: 0 | AD53: 0 | AE53: 0 | AF53: 0 | AG53: 0 | AH53: 0 | AI53: 0 | AJ53: 0 | AK53: 0 | AL53: 0 | AM53: 0 | AN53: 0
A54: Total | B54: Total | C54: Balanço Temporal | D54: mês | E54: 0 | F54: =SUBTOTAL(4,F4:F43) -> 0 | G54: 0 | H54: 0 | I54: 0 | J54: 0 | K54: 0 | L54: 0 | M54: 0 | N54: 0 | O54: 0 | P54: 0 | Q54: 0 | R54: 0 | S54: 0 | T54: 0 | U54: 0 | V54: 0 | W54: 0 | X54: 0 | Y54: 0 | Z54: 0 | AA54: 0 | AB54: 0 | AC54: 0 | AD54: 0 | AE54: 0 | AF54: 0 | AG54: 0 | AH54: 0 | AI54: 0 | AJ54: 0 | AK54: 0 | AL54: 0 | AM54: 0 | AN54: 0
A55: Cod1 | B55: Cod2 | C55: Insumos | D55: Uni | E55: Qde | F55: 1 | G55: 2 | H55: 3 | I55: 4 | J55: 5 | K55: 6 | L55: 7 | M55: 8 | N55: 9 | O55: 10 | P55: 11 | Q55: 12 | R55: 13 | S55: 14 | T55: 15 | U55: 16 | V55: 17 | W55: 18 | X55: 19 | Y55: 20 | Z55: 21 | AA55: 22 | AB55: 23 | AC55: 24 | AD55: 25 | AE55: 26 | AF55: 27 | AG55: 28 | AH55: 29 | AI55: 30 | AJ55: 31 | AK55: 32 | AL55: 33 | AM55: 34 | AN55: 35
A56: 1 | B56: P0 | C56: Engenheiro Sênior (Coordenador) | D56: mês | E56: =SUM(F56:AN56) -> 0
A57: 1 | B57: P1 | C57: Engenheiro Sênior | D57: mês | E57: 0
A58: 1 | B58: P2 | C58: Engenheiro Pleno | D58: mês | E58: 0
A59: 1 | B59: P3 | C59: Engenheiro Júnior | D59: mês | E59: 0
A60: 1 | B60: S1 | C60: Analista Sênior | D60: mês | E60: 0
A61: 1 | B61: S2 | C61: Analista Pleno | D61: mês | E61: 0
A62: 1 | B62: S3 | C62: Analista Júnior | D62: mês | E62: 0
A63: 1 | B63: T1 | C63: Técnico Sênior | D63: mês | E63: 0
A64: 1 | B64: T2 | C64: Técnico Pleno | D64: mês | E64: 0
A65: 1 | B65: T3 | C65: Técnico Junior | D65: mês | E65: 0
A66: 1 | B66: A1 | C66: Administrativo (Secretariado) | D66: mês | E66: 0
A67: 1 | B67: A2 | C67: Auxiliar | D67: mês | E67: 0
A68: 1 | B68: V1 | C68: Diárias | D68: dia | E68: 0
A69: 1 | B69: V2 | C69: Aluguel Sedan 71 a 115 CV | D69: dia | E69: 0
A70: 1 | B70: V3 | C70: Caminhonete 140 a 165 CV | D70: dia | E70: 0
A71: 1 | B71: V4 | C71: Passagens Aéreas (ida e volta) | D71: un | E71: 0
A72: 1 | B72: M1 | C72: Pen Drive 16 Gb | D72: un | E72: 0
A73: 1 | B73: M2 | C73: HD Externo 2 Tb | D73: un | E73: 0
A74: 1 | B74: M3 | C74: Relatório Parcial | D74: un | E74: 0
A75: 1 | B75: M4 | C75: Relatório Final | D75: un | E75: 0
A76: 1 | C76: EVTEA | F76: =SUBTOTAL(5,F56:F75) -> 0 | G76: 0 | H76: 0 | I76: 0 | J76: 0 | K76: 0 | L76: 0 | M76: 0 | N76: 0 | O76: 0 | P76: 0 | Q76: 0 | R76: 0 | S76: 0 | T76: 0 | U76: 0 | V76: 0 | W76: 0 | X76: 0 | Y76: 0 | Z76: 0 | AA76: 0 | AB76: 0 | AC76: 0 | AD76: 0 | AE76: 0 | AF76: 0 | AG76: 0 | AH76: 0 | AI76: 0 | AJ76: 0 | AK76: 0 | AL76: 0 | AM76: 0 | AN76: 0
A77: 2 | B77: P0 | C77: Engenheiro Sênior (Coordenador) | D77: mês | E77: =SUM(F77:AN77) -> 0
A78: 2 | B78: P1 | C78: Engenheiro Sênior | D78: mês | E78: 0
A79: 2 | B79: P2 | C79: Engenheiro Pleno | D79: mês | E79: 0
A80: 2 | B80: P3 | C80: Engenheiro Júnior | D80: mês | E80: 0
A81: 2 | B81: S1 | C81: Analista Sênior | D81: mês | E81: 0
A82: 2 | B82: S2 | C82: Analista Pleno | D82: mês | E82: 0
A83: 2 | B83: S3 | C83: Analista Júnior | D83: mês | E83: 0
A84: 2 | B84: T1 | C84: Técnico Sênior | D84: mês | E84: 0
A85: 2 | B85: T2 | C85: Técnico Pleno | D85: mês | E85: 0
A86: 2 | B86: T3 | C86: Técnico Junior | D86: mês | E86: 0
A87: 2 | B87: A1 | C87: Administrativo (Secretariado) | D87: mês | E87: 0
A88: 2 | B88: A2 | C88: Auxiliar | D88: mês | E88: 0
A89: 2 | B89: V1 | C89: Diárias | D89: dia | E89: 0
A90: 2 | B90: V2 | C90: Aluguel Sedan 71 a 115 CV | D90: dia | E90: 0
A91: 2 | B91: V3 | C91: Caminhonete 140 a 165 CV | D91: dia | E91: 0
A92: 2 | B92: V4 | C92: Passagens Aéreas (ida e volta) | D92: un | E92: 0
A93: 2 | B93: M1 | C93: Pen Drive 16 Gb | D93: un | E93: 0
A94: 2 | B94: M2 | C94: HD Externo 2 Tb | D94: un | E94: 0
A95: 2 | B95: M3 | C95: Relatório Parcial | D95: un | E95: 0
A96: 2 | B96: M4 | C96: Relatório Final | D96: un | E96: 0
A97: 2 | C97: Estudos Ambientais | F97: =SUBTOTAL(5,F77:F96) -> 0 | G97: 0 | H97: 0 | I97: 0 | J97: 0 | K97: 0 | L97: 0 | M97: 0 | N97: 0 | O97: 0 | P97: 0 | Q97: 0 | R97: 0 | S97: 0 | T97: 0 | U97: 0 | V97: 0 | W97: 0 | X97: 0 | Y97: 0 | Z97: 0 | AA97: 0 | AB97: 0 | AC97: 0 | AD97: 0 | AE97: 0 | AF97: 0 | AG97: 0 | AH97: 0 | AI97: 0 | AJ97: 0 | AK97: 0 | AL97: 0 | AM97: 0 | AN97: 0
A98: 3 | B98: P0 | C98: Engenheiro Sênior (Coordenador) | D98: mês | E98: =SUM(F98:AN98) -> 0
A99: 3 | B99: P1 | C99: Engenheiro Sênior | D99: mês | E99: 0
A100: 3 | B100: P2 | C100: Engenheiro Pleno | D100: mês | E100: 0
A101: 3 | B101: P3 | C101: Engenheiro Júnior | D101: mês | E101: 0
A102: 3 | B102: S1 | C102: Analista Sênior | D102: mês | E102: 0
A103: 3 | B103: S2 | C103: Analista Pleno | D103: mês | E103: 0
A104: 3 | B104: S3 | C104: Analista Júnior | D104: mês | E104: 0
A105: 3 | B105: T1 | C105: Técnico Sênior | D105: mês | E105: 0
A106: 3 | B106: T2 | C106: Técnico Pleno | D106: mês | E106: 0
A107: 3 | B107: T3 | C107: Técnico Junior | D107: mês | E107: 0
A108: 3 | B108: A1 | C108: Administrativo (Secretariado) | D108: mês | E108: 0
A109: 3 | B109: A2 | C109: Auxiliar | D109: mês | E109: 0
A110: 3 | B110: V1 | C110: Diárias | D110: dia | E110: 0
A111: 3 | B111: V2 | C111: Aluguel Sedan 71 a 115 CV | D111: dia | E111: 0
A112: 3 | B112: V3 | C112: Caminhonete 140 a 165 CV | D112: dia | E112: 0
A113: 3 | B113: V4 | C113: Passagens Aéreas (ida e volta) | D113: un | E113: 0
A114: 3 | B114: M1 | C114: Pen Drive 16 Gb | D114: un | E114: 0
A115: 3 | B115: M2 | C115: HD Externo 2 Tb | D115: un | E115: 0
A116: 3 | B116: M3 | C116: Relatório Parcial | D116: un | E116: 0
A117: 3 | B117: M4 | C117: Relatório Final | D117: un | E117: 0
A118: 3 | B118: TP | C118: Total Serviços Cartográficos | D118: un | E118: 0
A119: 3 | B119: GT | C119: Total Serviços Geotécnicos | D119: un | E119: 0
A120: 3 | C120: Estudos de Campo, Projeto Básico e Projeto Executivo | F120: =SUBTOTAL(5,F98:F119) -> 0 | G120: 0 | H120: 0 | I120: 0 | J120: 0 | K120: 0 | L120: 0 | M120: 0 | N120: 0 | O120: =SUBTOTAL(5,O98:O119) -> 0 | P120: =SUBTOTAL(5,P98:P119) -> 0 | Q120: =SUBTOTAL(5,Q98:Q119) -> 0 | R120: =SUBTOTAL(5,R98:R119) -> 0 | S120: =SUBTOTAL(5,S98:S119) -> 0 | T120: =SUBTOTAL(5,T98:T119) -> 0 | U120: =SUBTOTAL(5,U98:U119) -> 0 | V120: =SUBTOTAL(5,V98:V119) -> 0 | W120: =SUBTOTAL(5,W98:W119) -> 0 | X120: =SUBTOTAL(5,X98:X119) -> 0 | Y120: =SUBTOTAL(5,Y98:Y119) -> 0 | Z120: =SUBTOTAL(5,Z98:Z119) -> 0 | AA120: =SUBTOTAL(5,AA98:AA119) -> 0 | AB120: =SUBTOTAL(5,AB98:AB119) -> 0 | AC120: =SUBTOTAL(5,AC98:AC119) -> 0 | AD120: =SUBTOTAL(5,AD98:AD119) -> 0 | AE120: 0 | AF120: 0 | AG120: 0 | AH120: 0 | AI120: 0 | AJ120: 0 | AK120: 0 | AL120: 0 | AM120: 0 | AN120: 0
A121: Total | C121: Balanço de Insumos | F121: =SUBTOTAL(2,F56:F120) -> 0 | G121: 0 | H121: 0 | I121: 0 | J121: 0 | K121: 0 | L121: 0 | M121: 0 | N121: 0 | O121: 0 | P121: 0 | Q121: 0 | R121: 0 | S121: 0 | T121: 0 | U121: 0 | V121: 0 | W121: 0 | X121: 0 | Y121: 0 | Z121: 0 | AA121: 0 | AB121: 0 | AC121: 0 | AD121: 0 | AE121: 0 | AF121: 0 | AG121: 0 | AH121: 0 | AI121: 0 | AJ121: 0 | AK121: 0 | AL121: 0 | AM121: 0 | AN121: 0

Sheet CT_CV
A1: MODELO FICHA CURRICULAR DA EQUIPE TÉCNICA | G1: CODIGO:
G2: CV
A3: NOME DA CONSULTORA:
A5: PROJETO: | D5: CONTRATANTE: | G5: EDITAL:
A6: =PFP!A6 -> Estudos, Projetos Básico e Executivo - Orla Macapá - AP | D6: =PFP!F6 -> Codevasf (Sede)
A7: NOME DO PROFISSIONAL:
A9: ATUAÇÃO NO PROJETO: | C9: FORMAÇÃO PRINCIPAL: | E9: NASCIMENTO: | G9: NACIONALIDADE:
A11: FORMAÇÃO
A12: ESCOLARIDADE | C12: ENTIDADE | E12: CIDADE | G12: DURAÇÃO | H12: ANO CONCL.
A13: Técnico (título) | C13: Escola | E13: Cidade | G13: X anos | H13: AAAA
A14: Superior (título) | C14: Universidade | E14: Cidade | G14: X anos | H14: AAAA
A15: Especialização (título) | C15: Universidade | E15: Cidade | G15: X anos | H15: AAAA
A16: Mestrado (título) | C16: Universidade | E16: Cidade | G16: X anos | H16: AAAA
A17: Doutorado (título) | C17: Universidade | E17: Cidade | G17: X anos | H17: AAAA
A18: PERIODO | B18: CAPACIDADE TÉCNICA - EXPERIÊNCIA PROFISSIONAL
A19: (MM/AA a MM/AA) | B19: (Empresa, cargo ou função, cidade)
A25: CAT | B25: CAPACIDADE TÉCNICA - SERVIÇO OU OBRA
A26: (nº da ART ou CAT) | B26: (Objeto resumido, quantificação, contratante, cidade)
A32: ANO | B32: CAPACIDADE TECNOLÓGICA - CERTIFICADO
A33: (AAAA) | B33: (Nome do curso, empresa de treinamento, carga horaria em hs, cidade)
A38: CONCORDO EM PARTICIPAR DESTE OBJETO (ASSINATURA): | E38: Nº DO REGISTRO PROFISSIONAL:
A40: NOME DO INFORMANTE: | G40: QUALIFICAÇÃO
A42: ASSINATURA: | G42: DATA:
A44: OBSERVAÇÃO:
A45: 1 – PREENCHER UMA FICHA PARA CADA PROFISSIONAL DA EQUIPE CHAVE (ESPECIALISTAS) E COMPLEMENTAR (ANALISTAS)
A46: 2 – JUNTAR COMPROVANTES DE ESCOLARIDADE (GRADUAÇÃO, ESPECIALIZAÇÃO, MESTRADO E DOUTORADO)
A47: 3 – JUNTAR OS COMPROVANTES DA EXP. PROFISSIONAL, CERTIFICADOS PELA UNIDADE PROFISSIONAL COMPETENTE
A48: 4 – JUNTAR OS COMPROVANTES DE CAPACIDADE TECNICA, RELATIVO AOS CAT DE SERVIÇOS SIMILARES OU CORRELATOS
A49: 5 – JUNTAR OS COMPROVANTES DE CAPACIDADE TECNÓLOGICA
A50: 6 – ITENS EM VERMELHO SÃO APENAS INSTRUÇÃO DE PREENCHIMENTO E DEVEM SER APAGADOS.
